fUST/lending_fUST_20250821
["ID","MTS","AMOUNT","RATE_DAILY","PERIOD"]
[380454994,1755778246940,-480.0,0.00021917,3]
[380454995,1755778246949,-480.0,0.00021917,3]
[380454996,1755778246959,-480.0,0.00021917,3]
[380454997,1755778246968,-480.0,0.00021917,3]
[380454998,1755778246978,-159.373112,0.00021917,2]
[380454999,1755778246988,-480.0,0.00021917,3]
[380455000,1755778246998,-480.0,0.00021917,3]
[380455001,1755778247007,-480.0,0.00021917,3]
[380455002,1755778247016,-500.0,0.00021917,3]
[380455003,1755778247026,-1000.0,0.00021917,3]
[380455004,1755778247035,-480.0,0.00021917,3]
[380455005,1755778247045,-480.0,0.00021917,3]
[380455006,1755778247054,-480.88518652,0.00021917,3]
[380455007,1755778247064,-480.0,0.00021917,3]
[380455008,1755778247073,-480.0,0.00021917,3]
[380455009,1755778247082,-480.0,0.00021917,3]
[380455010,1755778247092,-480.0,0.00021917,3]
[380455011,1755778247101,-480.0,0.00021917,3]
[380455012,1755778247110,-480.0,0.00021917,3]
[380455013,1755778247119,-480.0,0.00021917,3]
[380455014,1755778247129,-480.0,0.00021917,3]
[380455015,1755778247139,-443.20094388,0.00021917,3]
[380455016,1755778247148,-480.0,0.00021917,3]
[380455017,1755778247157,-480.0,0.00021917,3]
[380455018,1755778247166,-500.0,0.00021917,3]
[380455019,1755778247175,-673.41,0.00021917,3]
[380455020,1755778247185,-480.0,0.00021917,3]
[380455021,1755778247197,-480.0,0.00021917,3]
[380455022,1755778247207,-480.0,0.00021917,3]
[380455023,1755778247218,-480.0,0.00021917,3]
[380455024,1755778247228,-512.14926981,0.00021917,3]
[380455025,1755778247238,-480.0,0.00021917,3]
[380455026,1755778247248,-480.0,0.00021917,3]
[380455027,1755778247259,-480.0,0.00021917,3]
[380455028,1755778247268,-480.0,0.00021917,3]
[380455029,1755778247277,-480.0,0.00021917,3]
[380455030,1755778247286,-480.0,0.00021917,3]
[380455031,1755778247296,-480.0,0.00021917,3]
[380455032,1755778247305,-480.0,0.00021917,3]
[380455033,1755778247314,-480.0,0.00021917,3]
[380455034,1755778247323,-480.0,0.00021917,3]
[380455035,1755778247331,-460.94801275,0.00021917,3]
[380455036,1755778247340,-1608.63,0.00021917,3]
[380455037,1755778247350,-480.0,0.00021917,3]
[380455038,1755778247359,-460.60605157,0.00021917,3]
[380455039,1755778247368,-167.23490614,0.00021917,3]
[380455040,1755778247378,-480.0,0.00021917,3]
[380455041,1755778247387,-480.0,0.00021917,3]
[380455042,1755778247396,-480.0,0.00021917,3]
[380455043,1755778247406,-458.65067199,0.00021917,3]
[380455044,1755778247414,-474.0,0.00021917,3]
[380455045,1755778247424,-480.0,0.00021917,3]
[380455046,1755778247435,-480.0,0.00021917,3]
[380455047,1755778247446,-480.0,0.00021917,3]
[380455048,1755778247455,-480.0,0.00021917,3]
[380455049,1755778247465,-480.0,0.00021917,3]
[380455050,1755778247474,-480.0,0.00021917,3]
[380455051,1755778247483,-480.0,0.00021917,3]
[380455052,1755778247493,-480.0,0.00021917,3]
[380455053,1755778247503,-480.0,0.00021917,3]
[380455054,1755778247512,-756.93,0.00021917,3]
[380455055,1755778247521,-480.0,0.00021917,3]
[380455056,1755778247530,-440.688789,0.00021917,3]
[380455057,1755778247539,-480.0,0.00021917,3]
[380455058,1755778247549,-505.33,0.00021917,3]
[380455059,1755778247558,-480.0,0.00021917,3]
[380455060,1755778247567,-480.0,0.00021917,3]
[380455061,1755778247576,-480.0,0.00021917,3]
[380455062,1755778247586,-500.0,0.00021917,3]
[380455063,1755778247597,-480.0,0.00021917,3]
[380455064,1755778247606,-480.0,0.00021917,3]
[380455065,1755778247616,-480.0,0.00021917,3]
[380455066,1755778247625,-480.0,0.00021917,3]
[380455067,1755778247635,-480.0,0.00021917,3]
[380455068,1755778247644,-480.0,0.00021917,3]
[380455069,1755778247654,-480.0,0.00021917,3]
[380455070,1755778247663,-861.02,0.00021917,3]
[380455071,1755778247673,-480.0,0.00021917,3]
[380455072,1755778247684,-480.0,0.00021917,3]
[380455073,1755778247697,-394.78195366,0.00021917,3]
[380455074,1755778247706,-461.6506,0.00021917,3]
[380455075,1755778247715,-480.0,0.00021917,3]
[380455076,1755778247725,-303.17047975,0.00021917,3]
[380455077,1755778247735,-481.61570816,0.00021917,3]
[380455078,1755778247744,-460.47437104,0.00021917,3]
[380455079,1755778247754,-480.0,0.00021917,3]
[380455080,1755778247763,-460.0,0.00021917,3]
[380455081,1755778247773,-480.0,0.00021917,3]
[380455082,1755778247784,-1000.89,0.00021917,3]
[380455083,1755778247794,-480.0,0.00021917,3]
[380455084,1755778247804,-460.40960822,0.00021917,3]
[380455085,1755778247813,-480.0,0.00021917,3]
[380455086,1755778247823,-460.24108421,0.00021917,3]
[380455087,1755778247833,-480.0,0.00021917,3]
[380455088,1755778247842,-1110.1,0.00021917,3]
[380455089,1755778247851,-277.57918385,0.00021917,3]
[380455090,1755778247861,-298.68808154,0.00021917,3]
[380455091,1755778247871,-480.0,0.00021917,3]
[380455092,1755778247879,-480.0,0.00021917,3]
[380455093,1755778247888,-480.0,0.00021917,3]
[380455094,1755778247897,-947.68,0.00021917,3]
[380455095,1755778247906,-480.0,0.00021917,3]
[380455096,1755778247915,-480.0,0.00021917,3]
[380455097,1755778247924,-480.0,0.00021917,3]
[380455098,1755778247934,-480.0,0.00021917,3]
[380455099,1755778247944,-480.0,0.00021917,3]
[380455100,1755778247954,-839.06,0.00021917,3]
[380455101,1755778247963,-480.0,0.00021917,3]
[380455102,1755778247972,-460.0,0.00021917,3]
[380455103,1755778247981,-480.0,0.00021917,3]
[380455104,1755778247991,-480.0,0.00021917,3]
[380455105,1755778248002,-182.95136853,0.00021917,3]
[380455106,1755778248012,-480.0,0.00021917,3]
[380455107,1755778248021,-480.0,0.00021917,3]
[380455108,1755778248030,-480.0,0.00021917,3]
[380455109,1755778248040,-480.0,0.00021917,3]
[380455110,1755778248049,-708.87,0.00021917,3]
[380455111,1755778248058,-500.0,0.00021917,2]
[380455112,1755778248068,-480.0,0.00021917,3]
[380455113,1755778248077,-509.53280485,0.00021917,2]
[380455114,1755778248087,-480.0,0.00021917,3]
[380455115,1755778248096,-480.0,0.00021917,3]
[380455116,1755778248105,-480.0,0.00021917,3]
[380455117,1755778248115,-151.0,0.00021917,2]
[380455118,1755778248125,-480.0,0.00021917,3]
[380455119,1755778248134,-480.0,0.00021917,3]
[380455120,1755778248143,-480.0,0.00021917,3]
[380455121,1755778248152,-480.0,0.00021917,3]
[380455122,1755778248161,-812.88,0.00021917,3]
[380455123,1755778248171,-480.0,0.00021917,3]
[380455124,1755778248181,-480.0,0.00021917,3]
[380455125,1755778248191,-910.27,0.00021917,3]
[380455126,1755778248201,-460.0,0.00021917,3]
[380455127,1755778248212,-480.0,0.00021917,3]
[380455128,1755778248222,-480.0,0.00021917,3]
[380455129,1755778248231,-1182.41,0.00021917,3]
[380455130,1755778248241,-151.0,0.00021917,2]
[380455131,1755778248250,-242.755203,0.00021917,2]
[380455132,1755778248258,-480.0,0.00021917,3]
[380455133,1755778248267,-687.6,0.00021917,3]
[380455134,1755778248276,-480.0,0.00021917,3]
[380455135,1755778248285,-480.0,0.00021917,3]
[380455136,1755778248294,-480.0,0.00021917,3]
[380455137,1755778248303,-480.0,0.00021917,3]
[380455138,1755778248313,-480.0,0.00021917,3]
[380455139,1755778248322,-1824.92,0.00021917,3]
[380455140,1755778248332,-480.0,0.00021917,3]
[380455141,1755778248341,-480.0,0.00021917,2]
[380455142,1755778248350,-480.0,0.00021917,3]
[380455143,1755778248359,-596.73,0.00021917,3]
[380455144,1755778248369,-480.0,0.00021917,3]
[380455145,1755778248379,-151.0,0.00021917,2]
[380455146,1755778248388,-713.92,0.00021917,3]
[380455147,1755778248397,-480.0,0.00021917,3]
[380455148,1755778248406,-480.0,0.00021917,3]
[380455149,1755778248415,-480.0,0.00021917,3]
[380455150,1755778248424,-625.15287875,0.00021917,3]
[380455151,1755778248434,-1106.68,0.00021917,3]
[380455152,1755778248444,-883.81,0.00021917,3]
[380455153,1755778248453,-480.0,0.00021917,3]
[380455154,1755778248462,-480.0,0.00021917,3]
[380455155,1755778248471,-151.0,0.00021917,2]
[380455156,1755778248481,-480.0,0.00021917,3]
[380455157,1755778248490,-480.0,0.00021917,3]
[380455158,1755778248499,-480.0,0.00021917,3]
[380455159,1755778248509,-481.32303006,0.00021917,3]
[380455160,1755778248520,-480.0,0.00021917,3]
[380455161,1755778248529,-513.29157592,0.00021917,3]
[380455162,1755778248539,-480.0,0.00021917,3]
[380455163,1755778248548,-460.45699337,0.00021917,3]
[380455164,1755778248558,-151.0,0.00021917,2]
[380455165,1755778248567,-151.0,0.00021917,2]
[380455166,1755778248577,-151.0,0.00021917,2]
[380455167,1755778248587,-151.0,0.00021917,2]
[380455168,1755778248600,-151.0,0.00021917,2]
[380455169,1755778248609,-151.0,0.00021917,2]
[380455170,1755778248619,-218.950842,0.00021917,2]
[380455171,1755778248628,-480.0,0.00021917,3]
[380455172,1755778248639,-387.60767719,0.00021917,3]
[380455173,1755778248648,-151.0,0.00021917,2]
[380455174,1755778248658,-480.0,0.00021917,3]
[380455175,1755778248668,-480.0,0.00021917,3]
[380455176,1755778248678,-480.0,0.00021917,3]
[380455177,1755778248687,-480.0,0.00021917,3]
[380455178,1755778248698,-480.0,0.00021917,3]
[380455179,1755778248708,-985.82,0.00021917,3]
[380455180,1755778248717,-480.0,0.00021917,3]
[380455181,1755778248727,-819.6,0.00021917,3]
[380455182,1755778248736,-480.0,0.00021917,3]
[380455183,1755778248746,-480.0,0.00021917,3]
[380455184,1755778248755,-402.04261588,0.00021917,3]
[380455185,1755778248765,-453.87104676,0.00021917,3]
[380455186,1755778248774,-480.0,0.00021917,3]
[380455187,1755778248784,-460.32578701,0.00021917,3]
[380455188,1755778248794,-480.0,0.00021917,3]
[380455189,1755778248804,-480.0,0.00021917,3]
[380455190,1755778248813,-464.44428695,0.00021917,3]
[380455191,1755778248822,-480.0,0.00021917,3]
[380455192,1755778248831,-480.0,0.00021917,3]
[380455193,1755778248841,-480.0,0.00021917,3]
[380455194,1755778248850,-480.0,0.00021917,3]
[380455195,1755778248859,-480.0,0.00021917,3]
[380455196,1755778248868,-2557.88,0.00021917,3]
[380455197,1755778248878,-480.0,0.00021917,3]
[380455198,1755778248887,-480.0,0.00021917,3]
[380455199,1755778248897,-480.0,0.00021917,3]
[380455200,1755778248906,-480.0,0.00021917,3]
[380455201,1755778248916,-480.0,0.00021917,3]
[380455202,1755778248926,-480.0,0.00021917,3]
[380455203,1755778248935,-480.0,0.00021917,3]
[380455204,1755778248946,-480.0,0.00021917,3]
[380455205,1755778248956,-480.0,0.00021917,3]
[380455206,1755778248965,-460.0,0.00021917,3]
[380455207,1755778248975,-480.0,0.00021917,3]
[380455208,1755778248985,-460.59057685,0.00021917,3]
[380455209,1755778248994,-812.51,0.00021917,3]
[380455210,1755778249004,-480.0,0.00021917,3]
[380455211,1755778249013,-480.0,0.00021917,3]
[380455212,1755778249023,-480.0,0.00021917,3]
[380455213,1755778249032,-480.0,0.00021917,3]
[380455214,1755778249043,-480.0,0.00021917,2]
[380455215,1755778249053,-480.0,0.00021917,3]
[380455216,1755778249062,-480.0,0.00021917,3]
[380455217,1755778249072,-480.0,0.00021917,3]
[380455218,1755778249082,-480.0,0.00021917,3]
[380455219,1755778249092,-480.0,0.00021917,3]
[380455220,1755778249101,-500.0,0.00021917,3]
[380455221,1755778249111,-500.0,0.00021917,3]
[380455222,1755778249121,-500.0,0.00021917,3]
[380455223,1755778249132,-513.77334648,0.00021917,3]
[380455224,1755778249142,-598.57,0.00021917,3]
[380455225,1755778249152,-1291.41,0.00021917,3]
[380455226,1755778249161,-1038.69,0.00021917,3]
[380455227,1755778249171,-393.84530192,0.00021917,3]
[380455228,1755778249180,-1677.64,0.00021917,3]
[380455229,1755778249191,-480.0,0.00021917,3]
[380455230,1755778249202,-676.93,0.00021917,3]
[380455231,1755778249213,-408.51802236,0.00021917,3]
[380455232,1755778249223,-480.0,0.00021917,3]
[380455233,1755778249233,-151.0,0.00021917,2]
[380455234,1755778249243,-151.0,0.00021917,2]
[380455235,1755778249252,-443.75382111,0.00021917,3]
[380455236,1755778249262,-480.0,0.00021917,3]
[380455237,1755778249272,-480.0,0.00021917,3]
[380455238,1755778249281,-460.0,0.00021917,3]
[380455239,1755778249291,-480.0,0.00021917,3]
[380455240,1755778249300,-462.04264354,0.00021917,3]
[380455241,1755778249310,-480.0,0.00021917,3]
[380455242,1755778249319,-480.0,0.00021917,3]
[380455243,1755778249328,-480.0,0.00021917,3]
[380455244,1755778249338,-480.0,0.00021917,3]
[380455245,1755778249347,-480.0,0.00021917,3]
[380455246,1755778249357,-480.0,0.00021917,3]
[380455247,1755778249366,-480.0,0.00021917,3]
[380455248,1755778249376,-480.0,0.00021917,3]
[380455249,1755778249385,-460.0,0.00021917,3]
[380455250,1755778249395,-480.0,0.00021917,3]
[380455251,1755778249404,-480.0,0.00021917,3]
[380455252,1755778249414,-480.0,0.00021917,3]
[380455253,1755778249423,-398.38894,0.00021917,3]
[380455254,1755778249432,-480.0,0.00021917,3]
[380455255,1755778249444,-475.4357367,0.00021917,3]
[380455256,1755778249453,-480.0,0.00021917,3]
[380455257,1755778249463,-602.97,0.00021917,3]
[380455258,1755778249472,-480.0,0.00021917,3]
[380455259,1755778249482,-2624.23,0.00021917,3]
[380455260,1755778249491,-480.0,0.00021917,3]
[380455261,1755778249501,-480.0,0.00021917,3]
[380455262,1755778249510,-460.0,0.00021917,3]
[380455263,1755778249521,-460.0,0.00021917,3]
[380455264,1755778249530,-480.0,0.00021917,3]
[380455265,1755778249540,-480.0,0.00021917,3]
[380455266,1755778249549,-480.0,0.00021917,3]
[380455267,1755778249558,-535.1,0.00021917,3]
[380455268,1755778249568,-480.0,0.00021917,3]
[380455269,1755778249577,-491.87,0.00021917,3]
[380455270,1755778249587,-657.7,0.00021917,3]
[380455271,1755778249601,-480.0,0.00021917,3]
[380455272,1755778249610,-480.0,0.00021917,3]
[380455273,1755778249620,-480.0,0.00021917,3]
[380455274,1755778249628,-151.0,0.00021917,2]
[380455275,1755778249638,-151.0,0.00021917,2]
[380455276,1755778249647,-480.60681905,0.00021917,3]
[380455277,1755778249657,-480.0,0.00021917,3]
[380455278,1755778249666,-480.0,0.00021917,3]
[380455279,1755778249677,-480.0,0.00021917,3]
[380455280,1755778249688,-420.7613972,0.00021917,3]
[380455281,1755778249701,-480.0,0.00021917,3]
[380455282,1755778249711,-480.0,0.00021917,3]
[380455283,1755778249721,-480.0,0.00021917,3]
[380455284,1755778249730,-480.0,0.00021917,3]
[380455285,1755778249740,-388.63263129,0.00021917,3]
[380455286,1755778249749,-1191.18,0.00021917,3]
[380455287,1755778249759,-480.0,0.00021917,3]
[380455288,1755778249768,-480.0,0.00021917,3]
[380455289,1755778249777,-480.0,0.00021917,3]
[380455290,1755778249787,-480.0,0.00021917,3]
[380455291,1755778249796,-480.0,0.00021917,3]
[380455292,1755778249805,-540.74,0.00021917,3]
[380455293,1755778249814,-480.0,0.00021917,3]
[380455294,1755778249824,-480.0,0.00021917,3]
[380455295,1755778249833,-480.0,0.00021917,3]
[380455296,1755778249842,-480.0,0.00021917,3]
[380455297,1755778249851,-480.0,0.00021917,3]
[380455298,1755778249861,-480.0,0.00021917,3]
[380455299,1755778249871,-480.0,0.00021917,3]
[380455300,1755778249880,-480.0,0.00021917,3]
[380455301,1755778249890,-618.05908602,0.00021917,3]
[380455302,1755778249901,-480.0,0.00021917,3]
[380455303,1755778249910,-151.0,0.00021917,2]
[380455304,1755778249919,-673.28,0.00021917,3]
[380455305,1755778249929,-480.0,0.00021917,3]
[380455306,1755778249938,-480.0,0.00021917,3]
[380455307,1755778249950,-480.0,0.00021917,3]
[380455308,1755778249959,-480.0,0.00021917,3]
[380455309,1755778249968,-480.0,0.00021917,3]
[380455310,1755778249976,-480.0,0.00021917,3]
[380455311,1755778249985,-480.0,0.00021917,3]
[380455312,1755778249995,-480.0,0.00021917,3]
[380455313,1755778250003,-480.0,0.00021917,3]
[380455314,1755778250012,-480.0,0.00021917,3]
[380455315,1755778250021,-539.18,0.00021917,3]
[380455316,1755778250192,-480.0,0.00021917,3]
[380455317,1755778250202,-461.95804072,0.00021917,3]
[380455318,1755778250212,-480.0,0.00021917,3]
[380455319,1755778250221,-480.0,0.00021917,3]
[380455320,1755778250230,-151.0,0.00021917,2]
[380455321,1755778250239,-480.0,0.00021917,3]
[380455322,1755778250248,-1218.0,0.00021917,3]
[380455323,1755778250257,-480.1,0.00021917,3]
[380455324,1755778250267,-480.0,0.00021917,3]
[380455325,1755778250276,-480.0,0.00021917,3]
[380455326,1755778250285,-1588.19,0.00021917,3]
[380455327,1755778250294,-151.0,0.00021917,2]
[380455328,1755778250303,-480.0,0.00021917,3]
[380455329,1755778250311,-480.0,0.00021917,3]
[380455330,1755778250321,-151.0,0.00021917,2]
[380455331,1755778250330,-151.0,0.00021917,2]
[380455332,1755778250340,-151.0,0.00021917,2]
[380455333,1755778250349,-480.0,0.00021917,3]
[380455334,1755778250359,-601.09597475,0.00021917,3]
[380455335,1755778250367,-480.0,0.00021917,3]
[380455336,1755778250377,-480.0,0.00021917,3]
[380455337,1755778250386,-480.0,0.00021917,3]
[380455338,1755778250395,-1338.7,0.00021917,3]
[380455339,1755778250403,-480.0,0.00021917,3]
[380455340,1755778250413,-2060.99,0.00021917,3]
[380455341,1755778250422,-480.0,0.00021917,3]
[380455342,1755778250431,-480.0,0.00021917,3]
[380455343,1755778250442,-151.0,0.00021917,2]
[380455344,1755778250451,-151.0,0.00021917,2]
[380455345,1755778250460,-480.0,0.00021917,3]
[380455346,1755778250469,-480.0,0.00021917,3]
[380455347,1755778250480,-151.0,0.00021917,2]
[380455348,1755778250489,-151.0,0.00021917,2]
[380455349,1755778250499,-151.0,0.00021917,2]
[380455350,1755778250508,-151.0,0.00021917,2]
[380455351,1755778250518,-151.0,0.00021917,2]
[380455352,1755778250527,-151.0,0.00021917,2]
[380455353,1755778250536,-151.0,0.00021917,2]
[380455354,1755778250546,-838.21,0.00021917,3]
[380455355,1755778250555,-151.0,0.00021917,2]
[380455356,1755778250564,-151.0,0.00021917,2]
[380455357,1755778250574,-151.0,0.00021917,2]
[380455358,1755778250584,-151.0,0.00021917,2]
[380455359,1755778250598,-480.0,0.00021917,3]
[380455360,1755778250607,-480.0,0.00021917,3]
[380455361,1755778250616,-151.0,0.00021917,2]
[380455362,1755778250625,-170.608148,0.00021917,2]
[380455363,1755778250635,-151.0,0.00021917,2]
[380455364,1755778250644,-480.0,0.00021917,3]
[380455365,1755778250653,-480.0,0.00021917,3]
[380455366,1755778250663,-202.12357,0.00021917,2]
[380455367,1755778250672,-1346.82,0.00021917,3]
[380455368,1755778250682,-460.62770357,0.00021917,3]
[380455369,1755778250692,-480.0,0.00021917,3]
[380455370,1755778250701,-480.0,0.00021917,3]
[380455371,1755778250710,-480.0,0.00021917,3]
[380455372,1755778250719,-480.0,0.00021917,3]
[380455373,1755778250728,-564.17,0.00021917,3]
[380455374,1755778250738,-460.40971989,0.00021917,3]
[380455375,1755778250747,-480.0,0.00021917,3]
[380455376,1755778250758,-480.0,0.00021917,3]
[380455377,1755778250767,-480.0,0.00021917,3]
[380455378,1755778250777,-675.28,0.00021917,3]
[380455379,1755778250786,-480.0,0.00021917,3]
[380455380,1755778250795,-1076.65,0.00021917,3]
[380455381,1755778250805,-480.0,0.00021917,3]
[380455382,1755778250814,-480.0,0.00021917,3]
[380455383,1755778250824,-1000.0,0.00021917,3]
[380455384,1755778250833,-480.0,0.00021917,3]
[380455385,1755778250843,-861.69,0.00021917,3]
[380455386,1755778250852,-480.0,0.00021917,3]
[380455387,1755778250862,-480.0,0.00021917,3]
[380455388,1755778250872,-480.0,0.00021917,3]
[380455389,1755778250881,-480.0,0.00021917,3]
[380455390,1755778250891,-481.01316962,0.00021917,3]
[380455391,1755778250901,-460.34195926,0.00021917,3]
[380455392,1755778250911,-480.0,0.00021917,3]
[380455393,1755778250921,-875.1,0.00021917,2]
[380455394,1755778250930,-480.0,0.00021917,3]
[380455395,1755778250939,-480.0,0.00021917,3]
[380455396,1755778250949,-1444.52,0.00021917,3]
[380455397,1755778250959,-480.0,0.00021917,3]
[380455398,1755778250968,-689.34,0.00021917,3]
[380455399,1755778250978,-185.20558183,0.00021917,3]
[380455400,1755778250988,-480.0,0.00021917,3]
[380455401,1755778250997,-480.0,0.00021917,3]
[380455402,1755778251007,-466.53376891,0.00021917,3]
[380455403,1755778251016,-480.0,0.00021917,3]
[380455404,1755778251026,-4412.94,0.00021917,3]
[380455405,1755778251035,-480.0,0.00021917,3]
[380455406,1755778251045,-480.0,0.00021917,3]
[380455407,1755778251054,-480.0,0.00021917,3]
[380455408,1755778251064,-480.0,0.00021917,3]
[380455409,1755778251073,-480.0,0.00021917,3]
[380455410,1755778251083,-480.0,0.00021917,3]
[380455411,1755778251093,-480.0,0.00021917,3]
[380455412,1755778251103,-151.0,0.00021917,2]
[380455413,1755778251112,-480.0,0.00021917,3]
[380455414,1755778251122,-151.0,0.00021917,2]
[380455415,1755778251132,-151.0,0.00021917,2]
[380455416,1755778251142,-273.497064,0.00021917,2]
[380455417,1755778251151,-480.0,0.00021917,3]
[380455418,1755778251161,-440.0,0.00021917,3]
[380455419,1755778251170,-604.29,0.00021917,3]
[380455420,1755778251179,-480.0,0.00021917,3]
[380455421,1755778251189,-498.31,0.00021917,3]
[380455422,1755778251199,-480.0,0.00021917,3]
[380455423,1755778251208,-480.0,0.00021917,3]
[380455424,1755778251218,-441.03147058,0.00021917,3]
[380455425,1755778251227,-589.47,0.00021917,3]
[380455426,1755778251236,-480.0,0.00021917,3]
[380455427,1755778251245,-480.74236972,0.00021917,3]
[380455428,1755778251257,-480.0,0.00021917,3]
[380455429,1755778251267,-480.0,0.00021917,3]
[380455430,1755778251277,-1054.11,0.00021917,3]
[380455431,1755778251287,-480.0,0.00021917,3]
[380455432,1755778251297,-480.0,0.00021917,3]
[380455433,1755778251306,-632.71,0.00021917,3]
[380455434,1755778251316,-480.0,0.00021917,3]
[380455435,1755778251325,-480.0,0.00021917,3]
[380455436,1755778251335,-151.0,0.00021917,2]
[380455437,1755778251344,-248.180602,0.00021917,2]
[380455438,1755778251354,-1137.8,0.00021917,3]
[380455439,1755778251364,-480.0,0.00021917,3]
[380455440,1755778251373,-201.01483656,0.00021917,3]
[380455441,1755778251382,-480.0,0.00021917,3]
[380455442,1755778251392,-480.0,0.00021917,3]
[380455443,1755778251401,-480.0,0.00021917,3]
[380455444,1755778251411,-527.05492919,0.00021917,3]
[380455445,1755778251421,-480.0,0.00021917,3]
[380455446,1755778251430,-461.131286,0.00021917,3]
[380455447,1755778251439,-1482.29,0.00021917,3]
[380455448,1755778251449,-473.81925101,0.00021917,3]
[380455449,1755778251459,-480.0,0.00021917,3]
[380455450,1755778251468,-867.95,0.00021917,3]
[380455451,1755778251477,-480.0,0.00021917,3]
[380455452,1755778251488,-480.54429768,0.00021917,3]
[380455453,1755778251498,-340.0,0.00021917,3]
[380455454,1755778251508,-1405.01,0.00021917,3]
[380455455,1755778251517,-480.0,0.00021917,3]
[380455456,1755778251527,-460.0,0.00021917,3]
[380455457,1755778251536,-480.0,0.00021917,3]
[380455458,1755778251546,-480.0,0.00021917,3]
[380455459,1755778251556,-480.0,0.00021917,3]
[380455460,1755778251565,-480.0,0.00021917,3]
[380455461,1755778251574,-920.17,0.00021917,3]
[380455462,1755778251583,-480.0,0.00021917,3]
[380455463,1755778251596,-1546.29,0.00021917,3]
[380455464,1755778251605,-388.93865679,0.00021917,3]
[380455465,1755778251614,-514.002178,0.00021917,14]
[380455466,1755778251623,-480.0,0.00021917,3]
[380455467,1755778251634,-480.0,0.00021917,3]
[380455468,1755778251643,-465.17456108,0.00021917,3]
[380455469,1755778251652,-604.13,0.00021917,3]
[380455470,1755778251662,-480.0,0.00021917,3]
[380455471,1755778251672,-480.0,0.00021917,3]
[380455472,1755778251682,-364.74665423,0.00021917,3]
[380455473,1755778251692,-480.0,0.00021917,3]
[380455474,1755778251701,-7814.45,0.00021917,3]
[380455475,1755778251711,-1744.1,0.00021917,3]
[380455476,1755778251721,-629.2,0.00021917,3]
[380455477,1755778251731,-551.91,0.00021917,3]
[380455478,1755778251740,-480.0,0.00021917,3]
[380455479,1755778251749,-1004.07,0.00021917,3]
[380455480,1755778251760,-482.44467574,0.00021917,3]
[380455481,1755778251769,-151.0,0.00021917,2]
[380455482,1755778251778,-151.0,0.00021917,2]
[380455483,1755778251787,-480.0,0.00021917,3]
[380455484,1755778251797,-151.0,0.00021917,2]
[380455485,1755778251807,-480.0,0.00021917,3]
[380455486,1755778251817,-480.0,0.00021917,3]
[380455487,1755778251826,-534.91,0.00021917,3]
[380455488,1755778251835,-480.0,0.00021917,3]
[380455489,1755778251844,-480.69,0.00021917,3]
[380455490,1755778251854,-655.3,0.00021917,3]
[380455491,1755778251863,-481.07247699,0.00021917,3]
[380455492,1755778251873,-480.0,0.00021917,3]
[380455493,1755778251882,-422.0760757,0.00021917,3]